fUSD/lending_fUSD_20250304
["ID","MTS","AMOUNT","RATE_DAILY","PERIOD"]
[355282872,1741054245075,-954.34,0.00012881,2]
[355282874,1741054245085,-1261.44,0.00012881,2]
[355282877,1741054245096,-916.61,0.00012881,2]
[355282879,1741054245105,-1458.26,0.00012881,2]
[355282881,1741054245114,-502.3922422,0.00012881,2]
[355282883,1741054245123,-500.0,0.00012881,2]
[355282885,1741054245132,-971.45,0.00012881,2]
[355282887,1741054245142,-509.35725382,0.00012881,2]
[355282889,1741054245151,-795.15,0.00012881,2]
[355282891,1741054245161,-1519.49,0.00012881,2]
[355282893,1741054245170,-1289.92,0.00012881,2]
[355282895,1741054245180,-463.92945258,0.00012881,2]
[355282898,1741054245189,-1933.23,0.00012881,2]
[355282903,1741054245202,-1137.13,0.00012881,2]
[355282904,1741054245212,-505.91882689,0.00012881,2]
[355282908,1741054245221,-500.0,0.00012881,2]
[355282912,1741054245230,-500.0,0.00012881,2]
[355282915,1741054245240,-500.0,0.00012881,2]
[355282917,1741054245250,-1406.68,0.00012881,2]
[355282919,1741054245259,-500.0,0.00012881,2]
[355282921,1741054245268,-668.18,0.00012881,2]
[355282923,1741054245277,-954.1,0.00012881,2]
[355282925,1741054245286,-1295.87,0.00012881,2]
[355282927,1741054245296,-500.0,0.00012881,2]
[355282929,1741054245305,-1151.85,0.00012881,2]
[355282931,1741054245314,-804.66,0.00012881,2]
[355282933,1741054245324,-500.0,0.00012881,2]
[355282935,1741054245333,-1224.12,0.00012881,2]
[355282937,1741054245342,-1017.55,0.00012881,2]
[355282939,1741054245352,-1455.48,0.00012881,2]
[355282941,1741054245361,-500.0,0.00012881,2]
[355282943,1741054245370,-1661.01,0.00012881,2]
[355282945,1741054245380,-889.09,0.00012881,2]
[355282947,1741054245389,-1105.8,0.00012881,2]
[355282949,1741054245399,-511.54902742,0.00012881,2]
[355282951,1741054245409,-500.0,0.00012881,2]
[355282953,1741054245418,-1447.34,0.00012881,2]
[355282955,1741054245428,-1765.93,0.00012881,2]
[355282957,1741054245437,-1137.73,0.00012881,2]
[355282959,1741054245449,-1464.69,0.00012881,2]
[355282961,1741054245458,-769.6,0.00012881,2]
[355282963,1741054245468,-1625.82,0.00012881,2]
[355282965,1741054245477,-500.0,0.00012881,2]
[355282967,1741054245486,-511.91040333,0.00012881,2]
[355282969,1741054245496,-1248.9,0.00012881,2]
[355282971,1741054245506,-500.0,0.00012881,2]
[355282973,1741054245516,-674.36,0.00012881,2]
[355282975,1741054245526,-1180.86,0.00012881,2]
[355282977,1741054245535,-808.87,0.00012881,2]
[355282979,1741054245545,-510.54999445,0.00012881,2]
[355282980,1741054245554,-879.73,0.00012881,2]
[355282982,1741054245563,-500.0,0.00012881,2]
[355282984,1741054245573,-1048.88,0.00012881,2]
[355282986,1741054245582,-979.94,0.00012881,2]
[355282988,1741054245592,-1325.52,0.00012881,2]
[355282990,1741054245601,-968.4,0.00012881,2]
[355282992,1741054245611,-621.77,0.00012881,2]
[355282995,1741054245621,-500.0,0.00012881,2]
[355282997,1741054245631,-1246.89,0.00012881,2]
[355282998,1741054245640,-641.15,0.00012881,2]
[355283000,1741054245649,-500.0,0.00012881,2]
[355283002,1741054245659,-1391.27,0.00012881,2]
[355283004,1741054245668,-2705.54,0.00012881,2]
[355283006,1741054245677,-2925.6,0.00012881,2]
[355283008,1741054245686,-29741.76,0.00012881,2]
[355283010,1741054245698,-500.0,0.00012881,2]
[355283012,1741054245708,-1219.44,0.00012881,2]
[355283014,1741054245717,-500.0,0.00012881,2]
[355283016,1741054245727,-500.0,0.00012881,2]
[355283018,1741054245736,-1045.41,0.00012881,2]
[355283020,1741054245746,-1015.18,0.00012881,2]
[355283022,1741054245755,-2028.45,0.00012881,2]
[355283024,1741054245764,-500.0,0.00012881,2]
[355283026,1741054245773,-32085.43,0.00012881,2]
[355283030,1741054245782,-1374.73,0.00012881,2]
[355283032,1741054245791,-838.7,0.00012881,2]
[355283034,1741054245801,-1735.39,0.00012881,2]
[355283036,1741054245810,-1667.07,0.00012881,2]
[355283038,1741054245820,-805.49,0.00012881,2]
[355283040,1741054245829,-500.0,0.00012881,2]
[355283042,1741054245840,-1309.1,0.00012881,2]
[355283044,1741054245850,-1825.5,0.00012881,2]
[355283046,1741054245859,-4318.16,0.00012881,2]
[355283049,1741054245869,-1628.25,0.00012881,2]
[355283052,1741054245878,-1775.7,0.00012881,2]
[355283055,1741054245887,-756.09,0.00012881,2]
[355283057,1741054245896,-5493.0,0.00012881,2]
[355283058,1741054245905,-639.34665385,0.00012881,2]
[355283059,1741054245914,-2459.79,0.00012881,2]
[355283060,1741054245923,-2502.28,0.00012881,2]
[355283061,1741054245932,-500.0,0.00012881,2]
[355283062,1741054245941,-1039.91,0.00012881,2]
[355283064,1741054245952,-1008.33,0.00012881,2]
[355283067,1741054245961,-3020.52,0.00012881,2]
[355283070,1741054245971,-1071.6,0.00012881,2]
[355283073,1741054245980,-899.05,0.00012881,2]
[355283076,1741054245990,-2398.73,0.00012881,2]
[355283079,1741054245999,-908.95,0.00012881,2]
[355283082,1741054246015,-1133.03,0.00012881,2]
[355283085,1741054246025,-1501.22,0.00012881,2]
[355283088,1741054246035,-3477.57,0.00012881,2]
[355283091,1741054246044,-1264.27,0.00012881,2]
[355283094,1741054246054,-22702.96,0.00012881,2]
[355283097,1741054246064,-1099.24,0.00012881,2]
[355283100,1741054246073,-4880.0,0.00012882,2]
[355283104,1741054246083,-587.12,0.00012882,2]
[355283107,1741054246092,-433.89507327,0.00012882,2]
[355283110,1741054246101,-507.59815081,0.00012882,2]
[355283113,1741054246112,-504.35160027,0.00012882,2]
[355283116,1741054246122,-507.47094271,0.00012882,2]
[355283119,1741054246131,-500.75087183,0.00012882,2]
[355283122,1741054246140,-501.01653459,0.00012882,2]
[355283125,1741054246150,-509.6206617,0.00012882,2]
[355283128,1741054246159,-241.41401957,0.00012882,2]
[355283131,1741054246168,-501.39969358,0.00012882,2]
[355283134,1741054246178,-504.33120891,0.00012882,2]
[355283137,1741054246187,-514.05266172,0.00012882,2]
[355283140,1741054246198,-509.06954734,0.00012882,2]
[355283143,1741054246207,-513.18385238,0.00012882,2]
[355283146,1741054246216,-505.96419832,0.00012882,2]
[355283149,1741054246225,-510.03030477,0.00012882,2]
[355283152,1741054246235,-516.20911924,0.00012882,2]
[355283154,1741054246244,-480.31150164,0.00012882,2]
[355283156,1741054246253,-521.10830479,0.00012882,2]
[355283158,1741054246263,-931.65,0.00012882,2]
[355283160,1741054246273,-507.61369958,0.00012882,2]
[355283162,1741054246283,-511.40693438,0.00012882,2]
[355283164,1741054246292,-500.0,0.00012882,2]
[355283166,1741054246302,-597.56,0.00012882,2]
[355283168,1741054246313,-521.58202655,0.00012882,2]
[355283170,1741054246323,-522.4882188,0.00012882,2]
[355283172,1741054246333,-627.18923667,0.00012882,2]
[355283174,1741054246343,-518.5288148,0.00012882,2]
[355283176,1741054246352,-500.55097181,0.00012882,2]
[355283178,1741054246363,-506.28160583,0.00012882,2]
[355283180,1741054246373,-500.0,0.00012882,2]
[355283182,1741054246382,-508.28510542,0.00012882,2]
[355283184,1741054246391,-524.28385345,0.00012882,2]
[355283186,1741054246401,-647.9,0.00012882,2]
[355283188,1741054246410,-616.35,0.00012882,2]
[355283190,1741054246420,-536.29650909,0.00012882,2]
[355283192,1741054246429,-500.0,0.00012882,2]
[355283194,1741054246438,-574.41,0.00012882,2]
[355283196,1741054246452,-513.11662268,0.00012882,2]
[355283198,1741054246463,-500.0,0.00012882,2]
[355283200,1741054246472,-214.55226663,0.00012882,2]
[355283202,1741054246483,-518.71908619,0.00012882,2]
[355283205,1741054246493,-513.81529993,0.00012882,2]
[355283207,1741054246502,-573.34,0.00012882,2]
[355283209,1741054246512,-515.28935045,0.00012882,2]
[355283211,1741054246522,-500.0,0.00012882,2]
[355283213,1741054246532,-500.0,0.00012882,2]
[355283215,1741054246542,-502.36399907,0.00012882,2]
[355283217,1741054246552,-500.0,0.00012882,2]
[355283218,1741054246561,-518.4982936,0.00012882,2]
[355283220,1741054246570,-503.26500093,0.00012882,2]
[355283223,1741054246579,-500.0,0.00012882,2]
[355283225,1741054246589,-500.0,0.00012882,2]
[355283227,1741054246598,-500.0,0.00012882,2]
[355283229,1741054246608,-507.0377993,0.00012882,2]
[355283230,1741054246617,-502.5114653,0.00012882,2]
[355283232,1741054246626,-500.0,0.00012882,2]
[355283234,1741054246636,-500.0,0.00012882,2]
[355283236,1741054246645,-649.43,0.00012882,2]
[355283238,1741054246654,-722.94,0.00012882,2]
[355283241,1741054246664,-512.01694048,0.00012882,2]
[355283243,1741054246674,-500.0,0.00012882,2]
[355283245,1741054246683,-500.0,0.00012882,2]
[355283247,1741054246696,-729.53,0.00012882,2]
[355283249,1741054246705,-199.88650593,0.00012882,2]
[355283250,1741054246715,-500.0,0.00012882,2]
[355283253,1741054246725,-500.0,0.00012882,2]
[355283254,1741054246735,-704.54,0.00012882,2]
[355283257,1741054246745,-904.38,0.00012882,2]
[355283259,1741054246754,-511.82103118,0.00012882,2]
[355283260,1741054246763,-500.0,0.00012882,2]
[355283263,1741054246773,-538.84530611,0.00012882,2]
[355283265,1741054246782,-887.59,0.00012882,2]
[355283267,1741054246792,-505.1243642,0.00012882,2]
[355283269,1741054246801,-1030.84,0.00012882,2]
[355283271,1741054246811,-500.0,0.00012882,2]
[355283272,1741054246820,-1268.39,0.00012882,2]
[355283274,1741054246830,-1059.09,0.00012882,2]
[355283277,1741054246839,-500.0,0.00012882,2]
[355283278,1741054246848,-500.0,0.00012882,2]
[355283280,1741054246858,-776.64,0.00012882,2]
[355283283,1741054246867,-500.0,0.00012882,2]
[355283285,1741054246877,-992.02,0.00012882,2]
[355283286,1741054246886,-500.0,0.00012882,2]
[355283289,1741054246896,-500.0,0.00012882,2]
[355283291,1741054246905,-735.71,0.00012882,2]
[355283292,1741054246914,-506.72986542,0.00012882,2]
[355283295,1741054246924,-500.0,0.00012882,2]
[355283297,1741054246934,-500.0,0.00012882,2]
[355283299,1741054246946,-675.12,0.00012882,2]
[355283301,1741054246955,-867.39,0.00012882,2]
[355283303,1741054246964,-936.81,0.00012882,2]
[355283305,1741054246974,-694.89,0.00012882,2]
[355283307,1741054246984,-1185.91,0.00012882,2]
[355283309,1741054246993,-1280.99,0.00012882,2]
[355283311,1741054247003,-500.0,0.00012882,2]
[355283313,1741054247012,-500.0,0.00012882,2]
[355283315,1741054247022,-500.0,0.00012882,2]
[355283317,1741054247036,-500.0,0.00012882,2]
[355283319,1741054247045,-832.42,0.00012882,2]
[355283321,1741054247054,-746.38,0.00012882,2]
[355283323,1741054247064,-500.0,0.00012882,2]
[355283325,1741054247075,-659.47,0.00012882,2]
[355283327,1741054247084,-500.0,0.00012882,2]
[355283329,1741054247094,-969.35,0.00012882,2]
[355283331,1741054247104,-730.75,0.00012882,2]
[355283333,1741054247114,-737.97,0.00012882,2]
[355283335,1741054247123,-500.0,0.00012882,2]
[355283337,1741054247132,-500.0,0.00012882,2]
[355283339,1741054247141,-1367.17,0.00012882,2]
[355283341,1741054247150,-500.0,0.00012882,2]
[355283343,1741054247159,-500.0,0.00012882,2]
[355283345,1741054247168,-1171.12,0.00012882,2]
[355283347,1741054247177,-500.0,0.00012882,2]
[355283348,1741054247187,-500.0,0.00012882,2]
[355283350,1741054247199,-551.1,0.00012882,2]
[355283353,1741054247209,-991.51,0.00012882,2]
[355283355,1741054247219,-500.0,0.00012882,2]
[355283357,1741054247228,-500.0,0.00012882,2]
[355283359,1741054247238,-1032.48,0.00012882,2]
[355283361,1741054247248,-500.0,0.00012882,2]
[355283363,1741054247258,-500.0,0.00012882,2]
[355283364,1741054247267,-1243.23,0.00012882,2]
[355283366,1741054247278,-500.0,0.00012882,2]
[355283368,1741054247288,-500.0,0.00012882,2]
[355283370,1741054247298,-1093.0,0.00012882,2]
[355283372,1741054247308,-681.92,0.00012882,2]
[355283374,1741054247317,-957.48,0.00012882,2]
[355283376,1741054247329,-992.35,0.00012882,2]
[355283378,1741054247339,-663.83,0.00012882,2]
[355283380,1741054247348,-507.23591114,0.00012882,2]
[355283382,1741054247358,-1759.83,0.00012882,2]
[355283384,1741054247368,-802.39,0.00012882,2]
[355283386,1741054247378,-500.0,0.00012882,2]
[355283388,1741054247388,-1774.46,0.00012882,2]
[355283390,1741054247397,-806.15,0.00012882,2]
[355283392,1741054247407,-590.97,0.00012882,2]
[355283394,1741054247417,-500.0,0.00012882,2]
[355283396,1741054247426,-1714.75,0.00012882,2]
[355283398,1741054247436,-500.0,0.00012882,2]
[355283400,1741054247449,-500.0,0.00012882,2]
[355283402,1741054247459,-402.06530084,0.00012882,2]
[355283404,1741054247468,-1701.32,0.00012882,2]
[355283406,1741054247478,-500.0,0.00012882,2]
[355283408,1741054247487,-655.93,0.00012882,2]
[355283410,1741054247497,-964.51,0.00012882,2]
[355283412,1741054247507,-500.0,0.00012882,2]
[355283414,1741054247517,-807.04,0.00012882,2]
[355283416,1741054247526,-784.8,0.00012882,2]
[355283418,1741054247536,-529.40768617,0.00012882,2]
[355283420,1741054247546,-500.0,0.00012882,2]
[355283422,1741054247557,-1506.04,0.00012882,2]
[355283424,1741054247567,-694.89,0.00012882,2]
[355283426,1741054247577,-802.52,0.00012882,2]
[355283428,1741054247586,-300.21789855,0.00012882,2]
[355283448,1741054247596,-500.0,0.00012882,2]
[355283451,1741054247793,-2056.38,0.00012882,2]
[355283453,1741054247803,-584.12,0.00012882,2]
[355283455,1741054247813,-682.37,0.00012882,2]
[355283457,1741054247823,-500.0,0.00012882,2]
[355283458,1741054247833,-847.96,0.00012882,2]
[355283460,1741054247843,-512.71500938,0.00012882,2]
[355283462,1741054247853,-1526.06,0.00012882,2]
[355283464,1741054247862,-506.3121386,0.00012882,2]
[355283466,1741054247872,-763.55,0.00012882,2]
[355283468,1741054247882,-1041.24,0.00012882,2]
[355283470,1741054247892,-504.19676604,0.00012882,2]
[355283472,1741054247900,-500.0,0.00012882,2]
[355283474,1741054247910,-1273.23,0.00012882,2]
[355283476,1741054247919,-623.62,0.00012882,2]
[355283478,1741054247929,-500.0,0.00012882,2]
[355283480,1741054247939,-1701.37,0.00012882,2]
[355283482,1741054247951,-947.7,0.00012882,2]
[355283484,1741054247960,-1843.68,0.00012882,2]
[355283486,1741054247970,-533.51,0.00012882,2]
[355283488,1741054247979,-500.0,0.00012882,2]
[355283490,1741054247988,-500.0,0.00012882,2]
[355283492,1741054247997,-1435.64,0.00012882,2]
[355283494,1741054248008,-500.0,0.00012882,2]
[355283496,1741054248019,-190.52325107,0.00012882,2]
[355283498,1741054248028,-500.0,0.00012882,2]
[355283500,1741054248038,-567.39,0.00012882,2]
[355283502,1741054248049,-1080.9,0.00012882,2]
[355283504,1741054248059,-500.0,0.00012882,2]
[355283506,1741054248069,-1042.66,0.00012882,2]
[355283508,1741054248079,-506.31280675,0.00012882,2]
[355283510,1741054248089,-500.0,0.00012882,2]
[355283512,1741054248100,-581.11,0.00012882,2]
[355283514,1741054248109,-668.99,0.00012882,2]
[355283516,1741054248119,-507.31721852,0.00012883,2]
[355283517,1741054248128,-2031.0,0.00012885,2]
[355283519,1741054248138,-1277.0,0.00012885,2]
[355283521,1741054248147,-640.0,0.00012885,2]
[355283523,1741054248157,-571.0,0.00012885,2]
[355283525,1741054248167,-1583.0,0.00012885,2]
[355283527,1741054248177,-246.909,0.00012885,2]
[355283529,1741054248188,-786.0,0.00012885,2]
[355283531,1741054248201,-1269.0,0.00012885,2]
[355283533,1741054248211,-1459.106,0.00012885,2]
[355283535,1741054248220,-640.99,0.00012885,2]
[355283537,1741054248230,-941.984,0.00012885,2]
[355283539,1741054248240,-4041.0,0.00012885,2]
[355283541,1741054248250,-177.83549062,0.000129,2]
[355283543,1741054248260,-2753.2927,0.000129,2]
[355283545,1741054248271,-150.0,0.000129,2]
[355283547,1741054248281,-440.21,0.000129,2]
[355283549,1741054248291,-1554.02,0.000129,2]
[355283551,1741054248301,-150.0,0.000129,2]
[355283553,1741054248310,-777.67,0.000129,2]
[355283555,1741054248320,-1555.34,0.000129,2]
[355283557,1741054248330,-440.21,0.000129,2]
[355283559,1741054248340,-777.67,0.000129,2]
[355283561,1741054248350,-777.67,0.000129,2]
[355283563,1741054248360,-440.21,0.000129,2]
[355283565,1741054248370,-5992.66752835,0.000129,2]
[355283567,1741054248380,-300.0,0.000129,4]
[355283569,1741054248391,-3249.53874243,0.000129,2]
[355283571,1741054248401,-344.5,0.000129,2]
[355283572,1741054248411,-2807.38194223,0.000129,2]
[355283574,1741054248420,-344.5,0.000129,2]
[355283576,1741054248430,-3012.514,0.00012913,2]
[355283578,1741054248440,-194.105,0.00012914,2]
[355283580,1741054248452,-164.948,0.0001297,2]
[355283582,1741054248462,-1012.0,0.0001297,2]
[355283584,1741054248473,-3929.0,0.0001297,2]
[355283586,1741054248482,-500.0,0.00012973,2]
[355283588,1741054248493,-500.0,0.00012973,2]
[355283590,1741054248503,-160.21251627,0.00012973,2]
[355283592,1741054248513,-1375.57,0.00012973,2]
[355283594,1741054248523,-1285.92,0.00012973,2]
[355283596,1741054248533,-1566.1,0.00012973,2]
[355283598,1741054248544,-1036.48,0.00012973,2]
[355283599,1741054248554,-1880.95,0.00012973,2]
[355283602,1741054248565,-2105.75,0.00012973,2]
[355283603,1741054248576,-1760.92,0.00012973,2]
[355283605,1741054248586,-566.73,0.00012973,2]
[355283607,1741054248596,-956.91,0.00012973,2]
[355283609,1741054248608,-1021.39,0.00012973,2]
[355283611,1741054248618,-500.0,0.00012973,2]
[355283613,1741054248628,-1484.58,0.00012973,2]
[355283615,1741054248638,-2680.59,0.00012973,2]
[355283617,1741054248648,-1577.65,0.00012973,2]
[355283619,1741054248658,-878.63,0.00012973,2]
[355283621,1741054248669,-1171.22,0.00012973,2]
[355283623,1741054248678,-955.8,0.00012973,2]
[355283625,1741054248688,-4051.96,0.00012973,2]
[355283627,1741054248702,-1267.54,0.00012973,2]
[355283629,1741054248712,-1096.5,0.00012973,2]
[355283631,1741054248722,-771.92,0.00012973,2]
[355283633,1741054248731,-3005.26,0.00012973,2]
[355283635,1741054248741,-1198.84,0.00012973,2]
[355283637,1741054248751,-597.3,0.00012973,2]
[355283638,1741054248761,-8152.48,0.00012973,2]
[355283640,1741054248771,-166.78,0.00012981,2]
[355283642,1741054248781,-500.0,0.00012994,2]
[355283644,1741054248791,-1150.60826319,0.00012999,3]
[355283646,1741054248801,-821.0046342,0.00012999,3]
[355283648,1741054248810,-246.01348589,0.00012999,2]
[355283650,1741054248820,-4158.84,0.00012999,2]
[355283652,1741054248830,-386.39546214,0.00013,2]
[355283654,1741054248840,-826308.69429678,0.00013,2]
[355283656,1741054248850,-628708.0985382,0.00013,2]
[355283702,1741054249326,-1711.71518477,0.00013,2]
[355283704,1741054249338,-1988.44609349,0.00013,2]
[355283794,1741054250469,-500.0,0.00012729,2]
[355283796,1741054250479,-439.95,0.00012771,2]
[355283798,1741054250488,-344.5,0.000129,2]
[355283800,1741054250497,-1113.0,0.0001297,2]
[355283802,1741054250507,-5971.83886939,0.00013,2]
[355283804,1741054250518,-83640.20207742,0.00013,2]
[355283907,1741054251530,-329.09139022,0.00012728,2]
[355283912,1741054251580,-170.90860978,0.00012728,2]
[355283914,1741054251590,-1878.00488056,0.00013,2]
[355283917,1741054251602,-296.06405418,0.00013,2]
[355283936,1741054251783,-295.30448057,0.00013,2]
[355283939,1741054251799,-16438.577427,0.00013,2]
[355283942,1741054251814,-2969.93281077,0.00013,2]
[355284980,1741054301013,-300.0,0.00012698,2]
[355284981,1741054301038,-845.82,0.00012699,2]
[355284982,1741054301064,-1389.169666,0.00012699,2]
[355284983,1741054301088,-2307.81,0.00012699,2]
[355284984,1741054301113,-2152.21,0.00012699,2]
[355284985,1741054301137,-750.17,0.00012699,2]
[355284986,1741054301161,-1892.640789,0.00012699,2]
[355284987,1741054301185,-2282.51,0.00012699,2]
[355284988,1741054301209,-3649.34,0.00012699,2]
[355284989,1741054301231,-158.041163,0.00012699,2]
[355284990,1741054301259,-2254.31,0.00012699,2]
[355284991,1741054301281,-151.788438,0.00012699,2]
[355284992,1741054301305,-2950.32,0.00012699,2]
[355284993,1741054301329,-7402.89,0.00012699,2]
[355284994,1741054301352,-547.55,0.00012699,2]
[355284995,1741054301375,-500.0,0.00012728,2]
[355284996,1741054301398,-500.0,0.00012728,2]
[355284997,1741054301421,-2805.5,0.00012728,2]
[355284998,1741054301444,-1112.2,0.00012728,2]
[355284999,1741054301467,-560.95,0.00012728,2]
[355285000,1741054301489,-949.98,0.00012728,2]
[355285001,1741054301514,-627.1,0.00012728,2]
[355285002,1741054301538,-512.81483976,0.00012728,2]
[355285003,1741054301563,-744.59,0.00012728,2]
[355285004,1741054301588,-885.34,0.00012729,2]
[355285005,1741054301612,-2240.47,0.00012729,2]
[355285006,1741054301636,-5846.07,0.00012729,2]
[355285007,1741054301660,-1724.97,0.00012729,2]
[355285008,1741054301685,-2944.35,0.00012729,2]
[355285009,1741054301709,-504.09147997,0.00012771,2]
[355285010,1741054301733,-500.0,0.00012771,2]
[355285011,1741054301759,-507.95218385,0.00012771,2]
[355285012,1741054301783,-500.0,0.00012771,2]
[355285013,1741054301809,-930.97,0.00012771,2]
[355285014,1741054301833,-762.02,0.00012771,2]
[355285015,1741054301858,-1454.92,0.00012771,2]
[355285016,1741054301884,-872.38,0.00012781,2]
[355285017,1741054301909,-28634.48,0.00012781,2]
[355285018,1741054301933,-620.9,0.00012781,2]
[355285019,1741054301958,-1168.63,0.00012781,2]
[355285020,1741054301981,-202.18404414,0.00012781,2]
[355285021,1741054302007,-1943.93,0.00012781,2]
[355285022,1741054302031,-934.5,0.00012781,2]
[355285023,1741054302059,-699.13,0.00012781,2]
[355285024,1741054302083,-500.0,0.00012881,2]
[355285025,1741054302106,-500.0,0.00012881,2]
[355285026,1741054302132,-1722.5,0.00012881,2]
[355285027,1741054302155,-950.2,0.00012881,2]
[355285028,1741054302182,-880.62,0.00012881,2]
[355285029,1741054302206,-249.01419784,0.000129,2]
[355285030,1741054302228,-160.23079243,0.00012973,2]
[355285031,1741054302252,-500.0,0.00012973,2]
[355285032,1741054302276,-845.82,0.00012973,2]
[355285033,1741054302301,-1389.169666,0.00012973,2]
[355285034,1741054302325,-2307.81,0.00012973,2]
[355285035,1741054302348,-2152.21,0.00012973,2]
[355285036,1741054302372,-750.17,0.00012973,2]
[355285037,1741054302396,-1892.640789,0.00012973,2]
[355285038,1741054302420,-2282.51,0.00012973,2]
[355285039,1741054302443,-3649.34,0.00012973,2]
[355285040,1741054302467,-2254.31,0.00012973,2]
[355285041,1741054302490,-2950.32,0.00012973,2]
[355285042,1741054302516,-7402.89,0.00012973,2]
[355285043,1741054302539,-547.55,0.00012973,2]
[355285044,1741054302562,-1971.61289739,0.00012999,3]
[355285045,1741054302585,-4400.0,0.00012999,2]
[355285046,1741054302610,-1115313.32351307,0.00013,2]
[355285047,1741054302633,-1237591.61892535,0.00013,2]
[355285048,1741054302656,-5000.0,0.00013,2]
[355285049,1741054302678,-368615.5427322,0.00013,2]
[355285052,1741054339247,23900.0,0.00012133,2]
[355285053,1741054357963,5070.04,0.00012219,2]
[355285054,1741054443041,550.0,0.00011,2]
[355285056,1741054481072,2000.0,0.00012086,2]
[355285057,1741054578486,150.0,0.00011929,7]
[355285058,1741054619895,481.79,0.00011929,2]
[355285059,1741054682713,505.86401203,0.00012771,120]
[355285060,1741054696561,1000.0,0.00011859,2]
[355285061,1741054784218,-300.0,0.00013698,7]
[355285062,1741054786532,-201.12529193,0.00013698,7]
[355285063,1741054812942,421.43,0.00011795,2]
[355285064,1741054900284,1248.03,0.00011796,2]
[355285065,1741054919911,200.0,0.00011796,2]
[355285066,1741054999568,170.64,0.00011906,2]
[355285067,1741054999788,170.64,0.00012303,2]
[355285068,1741055029686,150.0,0.00011965,2]
[355285114,1741055309598,1637.02,0.00011744,2]
[355285150,1741055430689,528.13,9.823e-05,2]
[355285151,1741055430896,528.13,0.00012087,2]
[355285163,1741055432327,-300.0,0.00012526,2]
[355285164,1741055432337,-150.0,0.00012526,2]
[355285165,1741055432347,-2625.3601,0.00012527,2]
[355285166,1741055432357,-1089.64796843,0.00012527,2]
[355285167,1741055432541,-439.83347109,0.00012527,2]
[355285177,1741055438214,-1025.56835964,0.00012527,2]
[355285178,1741055438257,-739.29319701,0.00012527,2]
[355285179,1741055438274,-324.845,0.00012527,2]
[355285180,1741055438318,-8509.95604513,0.00012527,2]
[355285181,1741055438384,-463.12378023,0.00012527,2]
[355285345,1741055440510,-14283.97157847,0.00012527,2]
[355285347,1741055440524,-150.0,0.00012567,2]
[355285349,1741055440539,-550.0,0.00012567,2]
[355285352,1741055440553,-150.0,0.00012599,2]
[355285354,1741055440568,-382.35609758,0.00012608,2]
[355285357,1741055440583,-2419.86124954,0.0001261,2]
[355285359,1741055440598,-2419.86124954,0.0001261,2]
[355285361,1741055440612,-2620.44661987,0.00012627,2]
[355285364,1741055440626,-406.43675017,0.00012627,2]
[355285366,1741055440640,-167637.867,0.00012627,2]
[355285369,1741055440654,-13943.7378,0.00012627,2]
[355285371,1741055440668,-1676.4072,0.00012627,2]
[355285373,1741055440682,-2753.2927,0.00012628,2]
[355285376,1741055440697,-500.0,0.00012628,2]
[355285378,1741055440712,-644.4126,0.00012628,2]
[355285380,1741055440722,-12003.8978,0.00012628,2]
[355285382,1741055440732,-2620.44661984,0.00012657,2]
[355285384,1741055440742,-247.66677733,0.0001268,2]
[355285386,1741055440752,-2620.44661984,0.00012688,2]